[Event "Titled Tuesday Blitz March 29 Early 2022"]
[White "Khamzin, Olzhas"]
[Black "Buscar, Michael"]
[WhiteFideId "13701690"]
[BlackFideId "2603616"]
[WhiteElo "2194"]
[BlackElo "2010"]
[Result "0-1"]
[Round "06"]
[TimeControl "180+1"]
[Date "2022.03.30"]
[WhiteClock "0:00:03"]
[BlackClock "0:00:11"]

1. d4 {[%clk 0:02:53]}  d5 {[%clk 0:02:59]} 2. Nc3 {[%clk 0:02:54]}  Nf6 {[%clk 0:02:57]} 3. Bg5 {[%clk 0:02:55]}  e6 {[%clk 0:02:57]} 4. e3 {[%clk 0:02:55]}  Be7 {[%clk 0:02:53]} 5. Qf3 {[%clk 0:02:56]}  Nbd7 {[%clk 0:02:53]} 6. Nge2 {[%clk 0:02:56]}  Nf8 {[%clk 0:02:53]} 7. g4 {[%clk 0:02:55]}  Ng6 {[%clk 0:02:53]} 8. h4 {[%clk 0:02:55]}  h6 {[%clk 0:02:51]} 9. h5 {[%clk 0:02:55]}  Nf8 {[%clk 0:02:44]} 10. Bf4 {[%clk 0:02:55]}  Bd6 {[%clk 0:02:40]} 11. O-O-O {[%clk 0:02:55]}  N8h7 {[%clk 0:02:39]} 12. Qg3 {[%clk 0:02:52]}  a6 {[%clk 0:02:32]} 13. Bxd6 {[%clk 0:02:50]}  Qxd6 {[%clk 0:02:32]} 14. f4 {[%clk 0:02:51]}  Bd7 {[%clk 0:02:27]} 15. Bg2 {[%clk 0:02:51]}  O-O-O {[%clk 0:02:27]} 16. Qh4 {[%clk 0:02:48]}  Bb5 {[%clk 0:02:18]} 17. Kb1 {[%clk 0:02:48]}  Bxe2 {[%clk 0:02:15]} 18. Nxe2 {[%clk 0:02:49]}  Ne4 {[%clk 0:02:16]} 19. Bxe4 {[%clk 0:02:49]}  dxe4 {[%clk 0:02:16]} 20. Nc3 {[%clk 0:02:49]}  f5 {[%clk 0:02:12]} 21. g5 {[%clk 0:02:44]}  Nf8 {[%clk 0:02:00]} 22. d5 {[%clk 0:02:37]}  Qb6 {[%clk 0:01:58]} 23. Qg3 {[%clk 0:02:32]}  exd5 {[%clk 0:01:47]} 24. Nxd5 {[%clk 0:02:33]}  Qc5 {[%clk 0:01:45]} 25. Nc3 {[%clk 0:02:23]}  Ne6 {[%clk 0:01:43]} 26. gxh6 {[%clk 0:02:16]}  Rxd1+ {[%clk 0:01:40]} 27. Nxd1 {[%clk 0:02:07]}  Rxh6 {[%clk 0:01:37]} 28. Nc3 {[%clk 0:02:02]}  Kb8 {[%clk 0:01:30]} 29. a3 {[%clk 0:01:59]}  Ka7 {[%clk 0:01:24]} 30. Rh2 {[%clk 0:01:56]}  b5 {[%clk 0:01:09]} 31. Qg1 {[%clk 0:01:47]}  a5 {[%clk 0:01:04]} 32. Qf1 {[%clk 0:01:39]}  b4 {[%clk 0:00:56]} 33. axb4 {[%clk 0:01:38]}  axb4 {[%clk 0:00:57]} 34. Nd1 {[%clk 0:01:26]}  Nd8 {[%clk 0:00:48]} 35. Rd2 {[%clk 0:01:23]}  Nb7 {[%clk 0:00:43]} 36. Qg1 {[%clk 0:01:22]}  Rxh5 {[%clk 0:00:34]} 37. Qxg7 {[%clk 0:01:22]}  Nd6 {[%clk 0:00:33]} 38. Qd4 {[%clk 0:01:19]}  Kb6 {[%clk 0:00:30]} 39. Ka2 {[%clk 0:01:17]}  Rh1 {[%clk 0:00:24]} 40. Kb3 {[%clk 0:00:55]}  Re1 {[%clk 0:00:24]} 41. c3 {[%clk 0:00:49]}  bxc3 {[%clk 0:00:23]} 42. bxc3 {[%clk 0:00:46]}  Kc6 {[%clk 0:00:18]} 43. Qa4+ {[%clk 0:00:38]}  Qb5+ {[%clk 0:00:18]} 44. Qxb5+ {[%clk 0:00:37]}  Kxb5 {[%clk 0:00:18]} 45. c4+ {[%clk 0:00:31]}  Kc5 {[%clk 0:00:17]} 46. Rd5+ {[%clk 0:00:31]}  Kc6 {[%clk 0:00:17]} 47. Kc3 {[%clk 0:00:27]}  Re2 {[%clk 0:00:17]} 48. Rd4 {[%clk 0:00:19]}  Ra2 {[%clk 0:00:17]} 49. Nb2 {[%clk 0:00:18]}  Ra3+ {[%clk 0:00:17]} 50. Kd2 {[%clk 0:00:18]}  Rb3 {[%clk 0:00:15]} 51. Kc2 {[%clk 0:00:18]}  Rxe3 {[%clk 0:00:15]} 52. Rd5 {[%clk 0:00:16]}  Rf3 {[%clk 0:00:15]} 53. Re5 {[%clk 0:00:15]}  Rxf4 {[%clk 0:00:14]} 54. c5 {[%clk 0:00:16]}  Nb5 {[%clk 0:00:14]} 55. Nc4 {[%clk 0:00:16]}  Nd4+ {[%clk 0:00:14]} 56. Kd1 {[%clk 0:00:16]}  Rf2 {[%clk 0:00:13]} 57. Na5+ {[%clk 0:00:15]}  Kb5 {[%clk 0:00:14]} 58. c6+ {[%clk 0:00:15]}  Kb4 {[%clk 0:00:14]} 59. Nb7 {[%clk 0:00:13]}  Kc3 {[%clk 0:00:14]} 60. Rc5+ {[%clk 0:00:12]}  Kd3 {[%clk 0:00:14]} 61. Ke1 {[%clk 0:00:12]}  e3 {[%clk 0:00:14]} 62. Rd5 {[%clk 0:00:11]}  Re2+ {[%clk 0:00:14]} 63. Kf1 {[%clk 0:00:10]}  Rd2 {[%clk 0:00:14]} 64. Nc5+ {[%clk 0:00:09]}  Kc4 {[%clk 0:00:13]} 65. Re5 {[%clk 0:00:05]}  f4 {[%clk 0:00:13]} 66. Ne4 {[%clk 0:00:04]}  Rh2 {[%clk 0:00:11]} 67. Nd6+ {[%clk 0:00:03]}  Kd3 {[%clk 0:00:11]} 0-1


[Site "https://www.chess.com"]

[Event "Titled Tuesday Blitz March 29 Early 2022"]
[White "Khripachenko, Alexander"]
[Black "Aradhya, Garg"]
[WhiteFideId "54184975"]
[BlackFideId "25006746"]
[WhiteElo "2177"]
[BlackElo "2169"]
[Result "0-1"]
[Round "06"]
[TimeControl "180+1"]
[Date "2022.03.30"]
[WhiteClock "0:00:42"]
[BlackClock "0:01:19"]

1. e4 {[%clk 0:03:00]}  e5 {[%clk 0:02:55]} 2. Nf3 {[%clk 0:03:01]}  Nc6 {[%clk 0:02:54]} 3. Nc3 {[%clk 0:03:01]}  Nf6 {[%clk 0:02:53]} 4. d4 {[%clk 0:03:01]}  exd4 {[%clk 0:02:53]} 5. Nxd4 {[%clk 0:03:02]}  Nxe4 {[%clk 0:02:52]} 6. Nxe4 {[%clk 0:03:02]}  Qe7 {[%clk 0:02:53]} 7. f3 {[%clk 0:03:03]}  d5 {[%clk 0:02:51]} 8. Bb5 {[%clk 0:03:03]}  Bd7 {[%clk 0:02:51]} 9. O-O {[%clk 0:03:01]}  dxe4 {[%clk 0:02:51]} 10. Bxc6 {[%clk 0:03:01]}  bxc6 {[%clk 0:02:50]} 11. Re1 {[%clk 0:03:02]}  O-O-O {[%clk 0:02:45]} 12. Rxe4 {[%clk 0:03:02]}  Qb4 {[%clk 0:02:36]} 13. c3 {[%clk 0:02:47]}  Qb6 {[%clk 0:02:33]} 14. Be3 {[%clk 0:02:39]}  c5 {[%clk 0:02:33]} 15. Ne2 {[%clk 0:02:22]}  Bc6 {[%clk 0:02:09]} 16. Qc2 {[%clk 0:02:20]}  Bxe4 {[%clk 0:02:08]} 17. Qxe4 {[%clk 0:02:21]}  Bd6 {[%clk 0:02:08]} 18. Qf5+ {[%clk 0:02:15]}  Kb8 {[%clk 0:02:07]} 19. b4 {[%clk 0:02:13]}  g6 {[%clk 0:01:54]} 20. Qxf7 {[%clk 0:02:13]}  Qb5 {[%clk 0:01:48]} 21. Kf2 {[%clk 0:02:03]}  Rhe8 {[%clk 0:01:42]} 22. c4 {[%clk 0:01:13]}  Qxb4 {[%clk 0:01:32]} 23. Rc1 {[%clk 0:00:58]}  Re7 {[%clk 0:01:23]} 24. Qf6 {[%clk 0:00:53]}  Rde8 {[%clk 0:01:22]} 25. Qc3 {[%clk 0:00:46]}  Rxe3 {[%clk 0:01:21]} 26. Qxe3 {[%clk 0:00:43]}  Rxe3 {[%clk 0:01:22]} 27. Kxe3 {[%clk 0:00:44]}  Qa3+ {[%clk 0:01:20]} 28. Rc3 {[%clk 0:00:42]}  Qxa2 {[%clk 0:01:19]} 0-1


[Site "https://www.chess.com"]

[Event "Titled Tuesday Blitz March 29 Early 2022"]
[White "Khumalo, Keith"]
[Black "Dreev, Aleksey"]
[WhiteFideId "14319470"]
[BlackFideId "4100107"]
[WhiteElo "2038"]
[BlackElo "2625"]
[Result "0-1"]
[Round "06"]
[TimeControl "180+1"]
[Date "2022.03.29"]
[WhiteClock "0:01:30"]
[BlackClock "0:00:40"]

1. d4 {[%clk 0:03:00]}  d5 {[%clk 0:02:59]} 2. c4 {[%clk 0:03:01]}  c6 {[%clk 0:03:00]} 3. Nf3 {[%clk 0:03:02]}  Nf6 {[%clk 0:03:00]} 4. Qc2 {[%clk 0:03:03]}  g6 {[%clk 0:02:59]} 5. e3 {[%clk 0:03:03]}  Bg7 {[%clk 0:02:59]} 6. Bd3 {[%clk 0:03:03]}  O-O {[%clk 0:02:57]} 7. O-O {[%clk 0:03:04]}  Bg4 {[%clk 0:02:53]} 8. Ne5 {[%clk 0:03:04]}  Be6 {[%clk 0:02:52]} 9. f4 {[%clk 0:03:04]}  Nbd7 {[%clk 0:02:50]} 10. Nd2 {[%clk 0:03:03]}  c5 {[%clk 0:02:49]} 11. Nxd7 {[%clk 0:03:00]}  Qxd7 {[%clk 0:02:43]} 12. dxc5 {[%clk 0:03:00]}  Rac8 {[%clk 0:02:37]} 13. b3 {[%clk 0:02:48]}  Ng4 {[%clk 0:02:34]} 14. Bb2 {[%clk 0:02:40]}  Nxe3 {[%clk 0:02:33]} 15. Qc1 {[%clk 0:02:40]}  Bxb2 {[%clk 0:02:24]} 16. Qxb2 {[%clk 0:02:40]}  Nxf1 {[%clk 0:02:24]} 17. Bxf1 {[%clk 0:02:41]}  dxc4 {[%clk 0:02:20]} 18. b4 {[%clk 0:02:41]}  b6 {[%clk 0:02:15]} 19. Nxc4 {[%clk 0:02:39]}  bxc5 {[%clk 0:02:13]} 20. Ne5 {[%clk 0:02:39]}  Qd4+ {[%clk 0:02:12]} 21. Qxd4 {[%clk 0:02:40]}  cxd4 {[%clk 0:02:13]} 22. b5 {[%clk 0:02:40]}  Bd5 {[%clk 0:02:06]} 23. Rd1 {[%clk 0:02:38]}  f6 {[%clk 0:02:03]} 24. Ng4 {[%clk 0:02:29]}  Bxa2 {[%clk 0:01:56]} 25. Rxd4 {[%clk 0:02:28]}  Rfd8 {[%clk 0:01:40]} 26. Ra4 {[%clk 0:02:28]}  Be6 {[%clk 0:01:40]} 27. Ne3 {[%clk 0:02:27]}  Rc7 {[%clk 0:01:40]} 28. g4 {[%clk 0:02:26]}  Kg7 {[%clk 0:01:32]} 29. f5 {[%clk 0:02:26]}  Bf7 {[%clk 0:01:32]} 30. Kf2 {[%clk 0:02:26]}  Rd2+ {[%clk 0:01:28]} 31. Be2 {[%clk 0:02:23]}  Ra2 {[%clk 0:01:24]} 32. Re4 {[%clk 0:02:20]}  Rd7 {[%clk 0:01:18]} 33. Kf3 {[%clk 0:02:14]}  Ra3 {[%clk 0:01:18]} 34. Kf2 {[%clk 0:02:09]}  Kf8 {[%clk 0:01:16]} 35. Ke1 {[%clk 0:02:05]}  Ra1+ {[%clk 0:01:14]} 36. Kf2 {[%clk 0:02:05]}  Rd2 {[%clk 0:01:13]} 37. h4 {[%clk 0:01:56]}  Raa2 {[%clk 0:01:10]} 38. Nf1 {[%clk 0:01:44]}  gxf5 {[%clk 0:01:07]} 39. gxf5 {[%clk 0:01:41]}  Rxe2+ {[%clk 0:00:57]} 40. Rxe2 {[%clk 0:01:41]}  Rxe2+ {[%clk 0:00:58]} 41. Kxe2 {[%clk 0:01:42]}  Bc4+ {[%clk 0:00:58]} 42. Kf2 {[%clk 0:01:43]}  Bxf1 {[%clk 0:00:58]} 43. Kxf1 {[%clk 0:01:43]}  e6 {[%clk 0:00:59]} 44. Ke2 {[%clk 0:01:41]}  Ke7 {[%clk 0:00:58]} 45. Ke3 {[%clk 0:01:40]}  exf5 {[%clk 0:00:52]} 46. Kf3 {[%clk 0:01:36]}  Ke6 {[%clk 0:00:49]} 47. h5 {[%clk 0:01:30]}  Ke5 {[%clk 0:00:47]} 48. Ke3 {[%clk 0:01:31]}  f4+ {[%clk 0:00:45]} 49. Kf3 {[%clk 0:01:32]}  h6 {[%clk 0:00:42]} 50. Kg4 {[%clk 0:01:30]}  Ke4 {[%clk 0:00:40]} 0-1


[Site "https://www.chess.com"]

[Event "Titled Tuesday Blitz March 29 Early 2022"]
[White "Kopylov, Alexander A."]
[Black "Karavaeva, Olga"]
[WhiteFideId "4164857"]
[BlackFideId "4124111"]
[WhiteElo "2436"]
[BlackElo "2105"]
[Result "0-1"]
[Round "06"]
[TimeControl "180+1"]
[Date "2022.03.30"]
[WhiteClock "0:01:13"]
[BlackClock "0:01:46"]

1. e4 {[%clk 0:03:00]}  c5 {[%clk 0:02:59]} 2. Nf3 {[%clk 0:03:01]}  e6 {[%clk 0:02:59]} 3. d4 {[%clk 0:03:01]}  cxd4 {[%clk 0:03:00]} 4. Nxd4 {[%clk 0:03:01]}  Nf6 {[%clk 0:03:00]} 5. Nc3 {[%clk 0:03:01]}  Nc6 {[%clk 0:03:01]} 6. Ndb5 {[%clk 0:02:58]}  d6 {[%clk 0:03:01]} 7. Bf4 {[%clk 0:02:58]}  e5 {[%clk 0:03:02]} 8. Bg5 {[%clk 0:02:59]}  a6 {[%clk 0:03:02]} 9. Na3 {[%clk 0:02:59]}  b5 {[%clk 0:03:03]} 10. Nd5 {[%clk 0:02:59]}  Be7 {[%clk 0:03:03]} 11. Bxf6 {[%clk 0:03:00]}  Bxf6 {[%clk 0:03:04]} 12. c4 {[%clk 0:03:00]}  b4 {[%clk 0:03:04]} 13. Nc2 {[%clk 0:03:00]}  a5 {[%clk 0:03:04]} 14. g3 {[%clk 0:03:00]}  O-O {[%clk 0:03:03]} 15. Bg2 {[%clk 0:03:01]}  Bb7 {[%clk 0:03:02]} 16. O-O {[%clk 0:03:01]}  g6 {[%clk 0:03:02]} 17. b3 {[%clk 0:03:01]}  Bg7 {[%clk 0:03:02]} 18. Qd3 {[%clk 0:03:02]}  f5 {[%clk 0:02:56]} 19. exf5 {[%clk 0:02:36]}  gxf5 {[%clk 0:02:55]} 20. Rad1 {[%clk 0:02:28]}  e4 {[%clk 0:02:54]} 21. Qe2 {[%clk 0:02:28]}  Ne5 {[%clk 0:02:52]} 22. Kh1 {[%clk 0:02:03]}  Nd3 {[%clk 0:02:42]} 23. f3 {[%clk 0:01:47]}  Bxd5 {[%clk 0:02:41]} 24. cxd5 {[%clk 0:01:45]}  exf3 {[%clk 0:02:37]} 25. Bxf3 {[%clk 0:01:44]}  Ne5 {[%clk 0:02:29]} 26. Bg2 {[%clk 0:01:43]}  Qg5 {[%clk 0:02:22]} 27. Nd4 {[%clk 0:01:41]}  Ng4 {[%clk 0:02:13]} 28. Rde1 {[%clk 0:01:29]}  Bxd4 {[%clk 0:02:09]} 29. Rf4 {[%clk 0:01:22]}  Be5 {[%clk 0:02:03]} 30. Rff1 {[%clk 0:01:20]}  Qh6 {[%clk 0:01:59]} 31. Bf3 {[%clk 0:01:13]}  Bxg3 {[%clk 0:01:46]} 0-1


[Site "https://www.chess.com"]

[Event "Titled Tuesday Blitz March 29 Early 2022"]
[White "Korchmar, Vasiliy"]
[Black "Papp, Petra"]
[WhiteFideId "24131750"]
[BlackFideId "739049"]
[WhiteElo "2370"]
[BlackElo "2259"]
[Result "0-1"]
[Round "06"]
[TimeControl "180+1"]
[Date "2022.03.30"]
[WhiteClock "0:00:01"]
[BlackClock "0:00:33"]

1. d4 {[%clk 0:03:00]}  Nf6 {[%clk 0:02:59]} 2. Bf4 {[%clk 0:02:59]}  c5 {[%clk 0:02:57]} 3. d5 {[%clk 0:02:58]}  b5 {[%clk 0:02:55]} 4. c4 {[%clk 0:02:41]}  bxc4 {[%clk 0:02:49]} 5. Nc3 {[%clk 0:02:40]}  d6 {[%clk 0:02:36]} 6. e4 {[%clk 0:02:39]}  g6 {[%clk 0:02:35]} 7. Bxc4 {[%clk 0:02:38]}  Bg7 {[%clk 0:02:36]} 8. Nf3 {[%clk 0:02:30]}  O-O {[%clk 0:02:35]} 9. h3 {[%clk 0:02:29]}  Ba6 {[%clk 0:02:30]} 10. Nd2 {[%clk 0:02:23]}  Bxc4 {[%clk 0:02:25]} 11. Nxc4 {[%clk 0:02:24]}  Nbd7 {[%clk 0:02:26]} 12. O-O {[%clk 0:02:24]}  Nb6 {[%clk 0:02:26]} 13. Na5 {[%clk 0:02:23]}  Qd7 {[%clk 0:02:25]} 14. Qe2 {[%clk 0:02:03]}  e6 {[%clk 0:02:19]} 15. dxe6 {[%clk 0:01:48]}  Qxe6 {[%clk 0:02:19]} 16. Rfe1 {[%clk 0:01:46]}  Rfe8 {[%clk 0:02:17]} 17. Rad1 {[%clk 0:01:44]}  d5 {[%clk 0:02:11]} 18. exd5 {[%clk 0:01:40]}  Qxe2 {[%clk 0:02:09]} 19. Rxe2 {[%clk 0:01:40]}  Rxe2 {[%clk 0:02:08]} 20. Nxe2 {[%clk 0:01:41]}  Nfxd5 {[%clk 0:02:08]} 21. b3 {[%clk 0:01:36]}  Re8 {[%clk 0:02:04]} 22. Rd2 {[%clk 0:01:15]}  Rxe2 {[%clk 0:01:15]} 23. Rxe2 {[%clk 0:01:15]}  Nxf4 {[%clk 0:01:16]} 24. Re8+ {[%clk 0:01:11]}  Bf8 {[%clk 0:01:16]} 25. Nc6 {[%clk 0:01:07]}  a6 {[%clk 0:01:17]} 26. Nb8 {[%clk 0:00:30]}  a5 {[%clk 0:01:13]} 27. Nc6 {[%clk 0:00:30]}  a4 {[%clk 0:01:10]} 28. bxa4 {[%clk 0:00:31]}  Nxa4 {[%clk 0:01:10]} 29. Re4 {[%clk 0:00:31]}  Nxh3+ {[%clk 0:00:57]} 30. gxh3 {[%clk 0:00:31]}  Nc3 {[%clk 0:00:58]} 31. Re8 {[%clk 0:00:11]}  Nxa2 {[%clk 0:00:58]} 32. Ne5 {[%clk 0:00:11]}  Kg7 {[%clk 0:00:43]} 33. Nd7 {[%clk 0:00:03]}  Bd6 {[%clk 0:00:41]} 34. Rc8 {[%clk 0:00:04]}  Nc3 {[%clk 0:00:33]} 35. Nxc5 {[%clk 0:00:04]}  Ne2+ {[%clk 0:00:32]} 36. Kg2 {[%clk 0:00:01]}  Nf4+ {[%clk 0:00:33]} 0-1


[Site "https://www.chess.com"]

[Event "Titled Tuesday Blitz March 29 Early 2022"]
[White "Koridze, Lile"]
[Black "Grebeniuk, Semen"]
[WhiteFideId "13612514"]
[BlackFideId "14117509"]
[WhiteElo "1999"]
[BlackElo "2234"]
[Result "0-1"]
[Round "06"]
[TimeControl "180+1"]
[Date "2022.03.30"]
[WhiteClock "0:01:44"]
[BlackClock "0:02:01"]

1. d4 {[%clk 0:03:00]}  f5 {[%clk 0:02:59]} 2. c4 {[%clk 0:03:00]}  Nf6 {[%clk 0:03:00]} 3. g3 {[%clk 0:03:00]}  g6 {[%clk 0:03:00]} 4. Bg2 {[%clk 0:03:00]}  Bg7 {[%clk 0:03:01]} 5. Nh3 {[%clk 0:03:00]}  O-O {[%clk 0:03:01]} 6. O-O {[%clk 0:03:00]}  d6 {[%clk 0:03:02]} 7. Nc3 {[%clk 0:03:00]}  e5 {[%clk 0:03:01]} 8. dxe5 {[%clk 0:02:55]}  dxe5 {[%clk 0:03:02]} 9. Qc2 {[%clk 0:02:54]}  c6 {[%clk 0:02:57]} 10. Rd1 {[%clk 0:02:52]}  Qe7 {[%clk 0:02:57]} 11. b3 {[%clk 0:02:51]}  a5 {[%clk 0:02:56]} 12. Ng5 {[%clk 0:02:44]}  h6 {[%clk 0:02:52]} 13. Nf3 {[%clk 0:02:44]}  e4 {[%clk 0:02:50]} 14. Nd4 {[%clk 0:02:44]}  Nbd7 {[%clk 0:02:45]} 15. Bb2 {[%clk 0:02:42]}  Ne5 {[%clk 0:02:44]} 16. a4 {[%clk 0:02:20]}  Re8 {[%clk 0:02:35]} 17. Ba3 {[%clk 0:02:18]}  Qf7 {[%clk 0:02:35]} 18. e3 {[%clk 0:02:12]}  Nd3 {[%clk 0:02:29]} 19. Qb1 {[%clk 0:02:09]}  Ng4 {[%clk 0:02:26]} 20. Rf1 {[%clk 0:02:02]}  Bd7 {[%clk 0:02:15]} 21. Qc2 {[%clk 0:01:59]}  Rad8 {[%clk 0:02:13]} 22. Nce2 {[%clk 0:01:57]}  Bc8 {[%clk 0:02:10]} 23. Rad1 {[%clk 0:01:57]}  g5 {[%clk 0:02:09]} 24. Nc1 {[%clk 0:01:51]}  Ndxf2 {[%clk 0:02:01]} 25. Rxf2 {[%clk 0:01:44]}  Nxe3 {[%clk 0:02:01]} 0-1


[Site "https://www.chess.com"]

[Event "Titled Tuesday Blitz March 29 Early 2022"]
[White "Kozak, Antoni"]
[Black "Iljin, Timofey"]
[WhiteFideId "21832030"]
[BlackFideId "14110180"]
[WhiteElo "2236"]
[BlackElo "2396"]
[Result "1-0"]
[Round "06"]
[TimeControl "180+1"]
[Date "2022.03.30"]
[WhiteClock "0:00:09"]
[BlackClock "0:00:02"]

1. e4 {[%clk 0:03:00]}  e5 {[%clk 0:02:59]} 2. Nf3 {[%clk 0:02:57]}  Nc6 {[%clk 0:02:59]} 3. Bc4 {[%clk 0:02:55]}  Nf6 {[%clk 0:02:58]} 4. d3 {[%clk 0:02:50]}  Bc5 {[%clk 0:02:57]} 5. Nc3 {[%clk 0:02:40]}  h6 {[%clk 0:02:56]} 6. Be3 {[%clk 0:02:39]}  d6 {[%clk 0:02:54]} 7. Ne2 {[%clk 0:02:28]}  O-O {[%clk 0:02:52]} 8. Ng3 {[%clk 0:02:09]}  Bxe3 {[%clk 0:02:43]} 9. fxe3 {[%clk 0:02:09]}  d5 {[%clk 0:02:44]} 10. exd5 {[%clk 0:02:04]}  Nxd5 {[%clk 0:02:45]} 11. Qd2 {[%clk 0:02:01]}  a6 {[%clk 0:02:41]} 12. O-O {[%clk 0:01:50]}  b5 {[%clk 0:02:40]} 13. Bb3 {[%clk 0:01:48]}  Be6 {[%clk 0:02:38]} 14. Qf2 {[%clk 0:01:45]}  Qe7 {[%clk 0:02:34]} 15. Rae1 {[%clk 0:01:35]}  Rad8 {[%clk 0:02:16]} 16. Nh5 {[%clk 0:01:19]}  g6 {[%clk 0:02:07]} 17. e4 {[%clk 0:01:13]}  Nf4 {[%clk 0:01:29]} 18. Nxf4 {[%clk 0:01:09]}  exf4 {[%clk 0:01:16]} 19. d4 {[%clk 0:01:08]}  Bxb3 {[%clk 0:01:15]} 20. axb3 {[%clk 0:01:08]}  Qd6 {[%clk 0:01:05]} 21. c3 {[%clk 0:01:04]}  Kg7 {[%clk 0:00:54]} 22. Nh4 {[%clk 0:01:01]}  Na5 {[%clk 0:00:54]} 23. b4 {[%clk 0:00:55]}  Nc4 {[%clk 0:00:53]} 24. e5 {[%clk 0:00:39]}  Qe6 {[%clk 0:00:42]} 25. Qxf4 {[%clk 0:00:36]}  Nxb2 {[%clk 0:00:41]} 26. Re3 {[%clk 0:00:25]}  Nc4 {[%clk 0:00:23]} 27. Rg3 {[%clk 0:00:19]}  Kh7 {[%clk 0:00:23]} 28. Qf2 {[%clk 0:00:14]}  Nb6 {[%clk 0:00:21]} 29. Qc2 {[%clk 0:00:10]}  Nd5 {[%clk 0:00:19]} 30. h3 {[%clk 0:00:10]}  Rg8 {[%clk 0:00:13]} 31. Rgf3 {[%clk 0:00:09]}  Rd7 {[%clk 0:00:14]} 32. g4 {[%clk 0:00:08]}  Rf8 {[%clk 0:00:12]} 33. Kh2 {[%clk 0:00:08]}  Qe7 {[%clk 0:00:13]} 34. Qf2 {[%clk 0:00:08]}  Qe6 {[%clk 0:00:10]} 35. Ng2 {[%clk 0:00:08]}  f6 {[%clk 0:00:08]} 36. Nf4 {[%clk 0:00:08]}  Nxf4 {[%clk 0:00:08]} 37. Rxf4 {[%clk 0:00:08]}  f5 {[%clk 0:00:05]} 38. gxf5 {[%clk 0:00:08]}  gxf5 {[%clk 0:00:05]} 39. Rxf5 {[%clk 0:00:09]}  Rg8 {[%clk 0:00:04]} 40. Rf7+ {[%clk 0:00:08]}  Kh8 {[%clk 0:00:03]} 41. Qf6+ {[%clk 0:00:07]}  Qxf6 {[%clk 0:00:03]} 42. R7xf6 {[%clk 0:00:07]}  Rgg7 {[%clk 0:00:02]} 43. Rxh6+ {[%clk 0:00:07]}  Kg8 {[%clk 0:00:02]} 44. Rxa6 {[%clk 0:00:07]}  Rde7 {[%clk 0:00:02]} 45. Rg1 {[%clk 0:00:07]}  Kh7 {[%clk 0:00:02]} 46. Rxg7+ {[%clk 0:00:07]}  Kxg7 {[%clk 0:00:02]} 47. Rc6 {[%clk 0:00:07]}  Kf7 {[%clk 0:00:02]} 48. Rc5 {[%clk 0:00:07]}  Re6 {[%clk 0:00:01]} 49. Rxc7+ {[%clk 0:00:07]}  Kg6 {[%clk 0:00:02]} 50. Rc5 {[%clk 0:00:07]}  Kf5 {[%clk 0:00:02]} 51. Rxb5 {[%clk 0:00:07]}  Ke4 {[%clk 0:00:03]} 52. Rc5 {[%clk 0:00:08]}  Kd3 {[%clk 0:00:03]} 53. Kg3 {[%clk 0:00:08]}  Rg6+ {[%clk 0:00:03]} 54. Kf4 {[%clk 0:00:08]}  Rg1 {[%clk 0:00:01]} 55. e6 {[%clk 0:00:08]}  Rf1+ {[%clk 0:00:02]} 56. Ke5 {[%clk 0:00:08]}  Re1+ {[%clk 0:00:02]} 57. Kd6 {[%clk 0:00:09]}  Kc2 {[%clk 0:00:03]} 58. e7 {[%clk 0:00:10]}  Kb3 {[%clk 0:00:04]} 59. Re5 {[%clk 0:00:10]}  Rg1 {[%clk 0:00:03]} 60. e8=Q {[%clk 0:00:09]}  Rf1 {[%clk 0:00:03]} 61. Qe6+ {[%clk 0:00:10]}  Ka4 {[%clk 0:00:03]} 62. b5 {[%clk 0:00:11]}  Ka3 {[%clk 0:00:03]} 63. b6 {[%clk 0:00:11]}  Ka4 {[%clk 0:00:02]} 64. b7 {[%clk 0:00:11]}  Ka3 {[%clk 0:00:02]} 65. b8=Q {[%clk 0:00:12]}  Rf6 {[%clk 0:00:02]} 66. Qb3# {[%clk 0:00:09]} 1-0


[Site "https://www.chess.com"]

[Event "Titled Tuesday Blitz March 29 Early 2022"]
[White "Krylov, Ivan"]
[Black "Mena, Ailen Oriana"]
[WhiteFideId "24128066"]
[BlackFideId "3902773"]
[WhiteElo "2258"]
[BlackElo "1534"]
[Result "0-1"]
[Round "06"]
[TimeControl "180+1"]
[Date "2022.03.30"]
[WhiteClock "0:00:03"]
[BlackClock "0:00:38"]

1. e4 {[%clk 0:03:00]}  e5 {[%clk 0:02:59]} 2. Nf3 {[%clk 0:03:00]}  Nc6 {[%clk 0:02:59]} 3. Bb5 {[%clk 0:02:59]}  f5 {[%clk 0:02:57]} 4. d3 {[%clk 0:02:52]}  fxe4 {[%clk 0:02:57]} 5. dxe4 {[%clk 0:02:51]}  Nf6 {[%clk 0:02:57]} 6. Nc3 {[%clk 0:02:50]}  Bb4 {[%clk 0:02:56]} 7. O-O {[%clk 0:02:30]}  Bxc3 {[%clk 0:02:56]} 8. bxc3 {[%clk 0:02:29]}  d6 {[%clk 0:02:35]} 9. Re1 {[%clk 0:02:13]}  O-O {[%clk 0:02:32]} 10. h3 {[%clk 0:02:11]}  Qe8 {[%clk 0:02:02]} 11. Ng5 {[%clk 0:02:00]}  h6 {[%clk 0:01:44]} 12. Bc4+ {[%clk 0:01:56]}  Kh8 {[%clk 0:01:43]} 13. Nf3 {[%clk 0:01:12]}  Qh5 {[%clk 0:01:42]} 14. Ba3 {[%clk 0:00:36]}  Ne7 {[%clk 0:01:17]} 15. Re3 {[%clk 0:00:25]}  Ng6 {[%clk 0:01:12]} 16. Be2 {[%clk 0:00:22]}  Nf4 {[%clk 0:01:07]} 17. Nd4 {[%clk 0:00:15]}  Qg6 {[%clk 0:00:58]} 18. g3 {[%clk 0:00:06]}  exd4 {[%clk 0:00:54]} 19. cxd4 {[%clk 0:00:06]}  Nxh3+ {[%clk 0:00:53]} 20. Kh2 {[%clk 0:00:06]}  Ng4+ {[%clk 0:00:47]} 21. Bxg4 {[%clk 0:00:04]}  Rxf2+ {[%clk 0:00:43]} 22. Kxh3 {[%clk 0:00:03]}  Qh5# {[%clk 0:00:38]} 0-1


[Site "https://www.chess.com"]

[Event "Titled Tuesday Blitz March 29 Early 2022"]
[White "Le Ruyet, Leopold"]
[Black "Pein, Jonathan"]
[WhiteFideId "645923"]
[BlackFideId "417092"]
[WhiteElo "2276"]
[BlackElo "2140"]
[Result "1-0"]
[Round "06"]
[TimeControl "180+1"]
[Date "2022.03.30"]
[WhiteClock "0:00:18"]
[BlackClock "0:00:22"]

1. d4 {[%clk 0:03:00]}  Nf6 {[%clk 0:02:54]} 2. c4 {[%clk 0:02:58]}  e6 {[%clk 0:02:51]} 3. Nc3 {[%clk 0:02:58]}  Bb4 {[%clk 0:02:46]} 4. f3 {[%clk 0:02:57]}  d5 {[%clk 0:02:44]} 5. a3 {[%clk 0:02:56]}  Bxc3+ {[%clk 0:02:43]} 6. bxc3 {[%clk 0:02:57]}  c5 {[%clk 0:02:42]} 7. e3 {[%clk 0:02:48]}  O-O {[%clk 0:02:40]} 8. cxd5 {[%clk 0:02:45]}  exd5 {[%clk 0:02:37]} 9. Bd3 {[%clk 0:02:45]}  Re8 {[%clk 0:02:36]} 10. Ne2 {[%clk 0:02:39]}  Nc6 {[%clk 0:02:29]} 11. O-O {[%clk 0:02:37]}  b6 {[%clk 0:02:29]} 12. Ng3 {[%clk 0:02:33]}  Qe7 {[%clk 0:02:02]} 13. Kh1 {[%clk 0:02:01]}  c4 {[%clk 0:01:56]} 14. Bc2 {[%clk 0:01:50]}  Bd7 {[%clk 0:01:50]} 15. e4 {[%clk 0:01:43]}  dxe4 {[%clk 0:01:49]} 16. fxe4 {[%clk 0:01:41]}  Bg4 {[%clk 0:01:43]} 17. Qe1 {[%clk 0:01:32]}  Rad8 {[%clk 0:01:33]} 18. Bg5 {[%clk 0:01:22]}  Qe6 {[%clk 0:01:17]} 19. Qf2 {[%clk 0:00:46]}  Ne7 {[%clk 0:00:50]} 20. h3 {[%clk 0:00:29]}  Bh5 {[%clk 0:00:47]} 21. Bxf6 {[%clk 0:00:28]}  gxf6 {[%clk 0:00:47]} 22. Nxh5 {[%clk 0:00:28]}  f5 {[%clk 0:00:40]} 23. e5 {[%clk 0:00:28]}  Nd5 {[%clk 0:00:39]} 24. Bxf5 {[%clk 0:00:26]}  Qh6 {[%clk 0:00:38]} 25. Qh4 {[%clk 0:00:24]}  Kh8 {[%clk 0:00:36]} 26. Bc2 {[%clk 0:00:20]}  f5 {[%clk 0:00:24]} 27. Rxf5 {[%clk 0:00:19]}  Ne3 {[%clk 0:00:24]} 28. Rf6 {[%clk 0:00:19]}  Nxg2 {[%clk 0:00:20]} 29. Rxh6 {[%clk 0:00:17]}  Nxh4 {[%clk 0:00:20]} 30. Rxh7+ {[%clk 0:00:18]}  Kg8 {[%clk 0:00:21]} 31. Nf6+ {[%clk 0:00:19]}  Kf8 {[%clk 0:00:21]} 32. Nxe8 {[%clk 0:00:18]}  Kxe8 {[%clk 0:00:22]} 33. Rxh4 {[%clk 0:00:18]} 1-0


[Site "https://www.chess.com"]